[Event "Prague Festival Masters 2024"]
[Site "Prague"]
[Date "2024.03.04"]
[Round "6.4"]
[White "Navara, David"]
[Black "Rapport, Richard"]
[Result "1/2-1/2"]
[ECO "E97"]
[WhiteElo "2679"]
[BlackElo "2717"]
[Annotator "TA"]
[PlyCount "93"]
[EventDate "2024.02.22"]
[EventType "tourn"]
[EventCountry "CZE"]
[SourceTitle "playchess.com"]
[Source "ChessBase"]
[SourceQuality "1"]
[TimeControl "40/5400+30:1800+30"]

{[%evp 27,93,8,14,22,22,0,0,-26,-13,-17,-29,-18,-30,-95,-91,-93,-83,-100,-83,-102,-97,-94,-97,-97,-102,-113,-109,-118,-99,-102,-97,-112,-112,-107,-110,-120,-75,-74,-29,-32,-29,-35,-25,-26,-8,-8,0,-52,-52,-67,-8,-8,-8,-8,-8,-8,-8,-8,-8,-8,-8,-8,-8,-8,-8,-8,-8,-8]} 1. d4 {[%emt 0:00:02]} Nf6 {[%emt 0:00:28]} 2. c4 {[%emt 0:00:04]} g6 {[%emt 0:00:07]} 3. Nc3 {[%emt 0:00:05]} Bg7 {[%emt 0:00:53]} 4. e4 {[%emt 0:00:10]} d6 {[%emt 0:00:03]} 5. Nf3 {[%emt 0:00:07]} O-O {[%emt 0:00:10]} 6. Be2 {[%emt 0:00:04]} e5 {[%emt 0:00:08]} 7. O-O {[%emt 0:00:05]} Nc6 {[%emt 0:01:27]} 8. d5 {[%emt 0:00:17]} Ne7 {[%emt 0:00:12]} 9. b4 {[%emt 0:00:13]} a5 {[%emt 0:00:14]} 10. Ba3 {[%emt 0:04:18]} b6 {[%emt 0:00:37]} 11. bxa5 {[%emt 0:00:38]} Ne8 {[%emt 0:00:29]} 12. Nb5 {[%emt 0:14:11]} Rxa5 {[%emt 0:01:25]} 13. Bb4 {[%emt 0:00:22]} Ra8 {[%emt 0:01:20]} 14. a4 {[%emt 0:00:20]} f5 {[%emt 0:06:52]} 15. Nd2 {[%emt 0:18:09]} Bd7 {[%emt 0:05:09]} 16. a5 {[%emt 0:03:11]} bxa5 {[%emt 0:02:35]} 17. Bxa5 {[%emt 0:06:01]} fxe4 $1 {[%emt 0:02:49]} 18. Nxe4 {[%emt 0:01:02] [#]} Rxa5 $1 {[%emt 0:00:45]} 19. Rxa5 {[%emt 0:00:16] aiming for Bg4.} c6 $1 {[%emt 0:00:13]} 20. dxc6 {[%emt 0:15:43]} (20. Qa4 $11 {keeps the balance.} cxb5 21. cxb5) 20... Bxc6 $17 {[%emt 0:00:42]} (20... Qxa5 $2 {perishes.} 21. cxd7 d5 22. dxe8=R $18 (22. dxe8=B dxe4 23. Qd7 Nf5 $18) (22. dxe8=Q Rxe8 23. cxd5 Nf5 $18)) 21. Ra4 {[%emt 0:00:24]} Bxe4 {[%emt 0:00:47]} 22. c5 {[%emt 0:00:06][%cal Rc5d6] [#]} Bc6 $1 {[%emt 0:20:22]} 23. Nxd6 {[%emt 0:03:46]} Nxd6 {[%emt 0:01:39]} (23... Bxa4 $2 {too greedy.} 24. Bc4+ $18) 24. cxd6 {[%emt 0:00:09]} Nf5 {[%emt 0:01:09]} ({Don't play} 24... Bxa4 $6 25. dxe7 Qxe7 26. Qxa4 $11) 25. Bb5 {[%emt 0:06:15]} Bxb5 {[%emt 0:07:27] A strong pair of Bishops.} 26. Qd5+ {[%emt 0:00:12]} Kh8 {[%emt 0:00:07]} 27. Qxb5 {[%emt 0:00:04]} Qxd6 {[%emt 0:09:36]} 28. Qb7 {[%emt 0:00:12]} Qd8 {[%emt 0:01:39]} 29. Qe4 {[%emt 0:01:15]} h5 {[%emt 0:08:29]} 30. Rfa1 {[%emt 0:00:50]} Kh7 {[%emt 0:00:09]} 31. Ra8 {[%emt 0:02:01]} Qd4 {[%emt 0:02:37]} 32. Qxd4 {[%emt 0:00:33]} exd4 {[%emt 0:00:06]} 33. Rxf8 {[%emt 0:00:06]} Bxf8 {[%emt 0:00:04]} 34. Kf1 {[%emt 0:02:50]} Kh6 {[%emt 0:02:32]} 35. Ke2 {[%emt 0:00:42]} Kg5 {[%emt 0:00:26]} 36. Kd3 {[%emt 0:03:29]} Kf4 {[%emt 0:10:19]} 37. h3 {[%emt 0:05:32]} ({White should try} 37. g3+ $11 Kg5 38. h3) 37... h4 $1 $15 {[%emt 0:01:16]} 38. Re1 {[%emt 0:02:08]} Bd6 {[%emt 0:02:41]} (38... Bb4 $15 39. Re6 Kg5) 39. g3+ $11 {[%emt 0:13:18] The position is equal.} Kf3 {[%emt 0:08:33]} 40. Re6 {[%emt 0:00:39]} hxg3 {[%emt 0:03:14]} (40... Bxg3 {seems wilder.} 41. fxg3 hxg3 42. Rxg6 g2) 41. fxg3 {[%emt 0:30:11]} Bxg3 {[%emt 0:05:31] ...Nh4 is the strong threat.} 42. Rxg6 {[%emt 0:00:00]} Bf2 {[%emt 0:02:16]} 43. Rg4 {[%emt 0:00:00]} Be3 {[%emt 0:00:54]} 44. Re4 {[%emt 0:00:00]} Kg3 {[%emt 0:00:48]} 45. h4 {[%emt 0:00:00]} Nxh4 {[%emt 0:00:25]} 46. Rxe3+ {[%emt 0:00:00]} dxe3 {[%emt 0:00:03]} 47. Kxe3 {[%emt 0:00:00] Weighted Error Value: White=0.09 (flawless) /Black=0.07 (flawless) .  Mistake:       	White=2     	Black=1      Inaccurate:     	White=1     	Black=2      OK:         	White=18    	Black=7      Best:        	White=2     	Black=2      Strong:       	---       	Black=4      Brilliant:      	---       	Black=1} 1/2-1/2

[Event "Prague Festival Masters 2024"]
[Site "Prague"]
[Date "2024.03.04"]
[Round "6.5"]
[White "Abdusattorov, Nodirbek"]
[Black "Praggnanandhaa R"]
[Result "0-1"]
[ECO "C60"]
[WhiteElo "2727"]
[BlackElo "2743"]
[Annotator "TA"]
[PlyCount "112"]
[EventDate "2024.02.22"]
[EventType "tourn"]
[EventCountry "CZE"]
[SourceTitle "playchess.com"]
[Source "ChessBase"]
[SourceQuality "1"]
[TimeControl "40/5400+30:1800+30"]

{[%evp 35,112,-12,10,6,75,84,71,60,66,47,59,64,72,81,67,75,98,62,76,76,124,87,60,61,86,87,81,63,73,0,0,-10,0,-79,0,0,0,-289,-285,-456,-424,-459,-458,-464,-465,-464,-457,-455,-448,-420,-320,-372,-362,-427,-437,-359,-162,-162,-153,-161,-143,-132,-135,-162,-162,-156,-125,-335,-249,-504,-497,-496,-484,-810,-775,-4133,-2028,-4149,-4149]} 1. e4 {[%emt 0:00:16]} e5 {[%emt 0:00:49]} 2. Nf3 {[%emt 0:00:27]} Nc6 {[%emt 0:00:07]} 3. Bb5 {[%emt 0:00:09]} a6 {[%emt 0:00:34]} 4. Ba4 {[%emt 0:00:06]} Nge7 {[%emt 0:00:39]} 5. O-O {[%emt 0:00:45]} Ng6 {[%emt 0:00:22]} 6. c3 {[%emt 0:02:49] C60: Ruy Lopez: Unusual Black 3rd moves and 3...g6.} d5 {[%emt 0:00:32]} 7. exd5 {[%emt 0:04:58]} Qxd5 {[%emt 0:00:26]} 8. Bb3 {[%emt 0:08:39]} Qd3 {[%emt 0:01:03]} 9. Bc2 {[%emt 0:00:06]} Qd6 {[%emt 0:00:49]} 10. Re1 {[%emt 0:03:22]} Be6 $5 $146 {[%emt 0:12:15][%mdl 8] New and interesting.} ({Predecessor:} 10... Be7 11. h3 Be6 12. d3 O-O 13. Nbd2 f5 14. Nc4 Bxc4 15. dxc4 e4 16. Qxd6 Bxd6 {1-0 Kamsky,G (2661)-Sadhwani,R (2619) Titled Tuesday intern op 17th May Early blitz 2022 (8)}) 11. d4 {[%emt 0:05:36]} Be7 {[%emt 0:22:05]} 12. Be3 {[%emt 0:08:17]} exd4 {[%emt 0:07:07]} 13. Nxd4 {[%emt 0:05:40]} Nxd4 {[%emt 0:01:20]} 14. Bxd4 {[%emt 0:01:15]} O-O {[%emt 0:03:53]} 15. Nd2 {[%emt 0:00:08]} c5 {[%emt 0:01:32]} 16. Be3 {[%emt 0:01:31]} Qc7 {[%emt 0:01:33]} 17. Qh5 {[%emt 0:06:08]} Rad8 {[%emt 0:03:00]} 18. g3 {[%emt 0:02:24]} Rd5 {[%emt 0:06:29]} 19. Qe2 {[%emt 0:00:31]} b5 {[%emt 0:01:15]} (19... Re8 $11) 20. f4 $16 {[%emt 0:03:29]} Qc8 {[%emt 0:06:50]} 21. Be4 {[%emt 0:03:37]} Rdd8 {[%emt 0:00:06]} 22. a4 {[%emt 0:00:14]} Bg4 {[%emt 0:02:51]} 23. Qf2 {[%emt 0:00:49]} Bf5 {[%emt 0:00:31]} 24. axb5 {[%emt 0:01:06]} axb5 {[%emt 0:00:07]} 25. Bg2 {[%emt 0:05:59]} Bh3 {[%emt 0:05:27]} 26. Bh1 {[%emt 0:06:54]} b4 {[%emt 0:04:01]} 27. c4 {[%emt 0:07:11]} Bf6 {[%emt 0:00:08]} (27... Bf5 $142) 28. Ra8 {[%emt 0:02:39]} (28. Bxc5 $2 {perishes.} Rxd2 29. Qe3 Rd3 $19 (29... Rxb2 $2 30. Bxf8 Nxf8 31. Ra8 $19)) 28... Qd7 {[%emt 0:02:33]} 29. Rxd8 {[%emt 0:00:17]} Rxd8 {[%emt 0:00:05]} 30. Ne4 {[%emt 0:00:24]} Qd3 {[%emt 0:01:00]} 31. Bxc5 {[%emt 0:09:52]} Qxc4 {[%emt 0:00:30]} 32. Nd6 {[%emt 0:01:17]} (32. Nxf6+ gxf6 33. Bb6 Rd7 $11) (32. Bf3 $16) 32... Qb3 $11 {[%emt 0:01:17]} 33. Bf3 {[%emt 0:03:19]} h6 {[%emt 0:03:22]} (33... Nf8 {simplifies} 34. Be2 Be6 35. Bd1 Qxb2 36. Qxb2 Bxb2 37. Bxb4 Bd4+) 34. Bh5 {[%emt 0:01:38]} (34. Be2 $11 {remains equal.} Qxb2 (34... Bxb2 $2 {loses.} 35. Bc4 $18) 35. Bc4) 34... Qd5 {[%emt 0:07:54]} ({Black should play} 34... Bxb2 $17 {And now ...Bc3 would win.} 35. Rb1 Qc3) 35. Bf3 $11 {[%emt 0:00:11]} Qb3 {[%emt 0:00:10]} 36. Re2 $2 {[%emt 0:02:38][%mdl 8192] [#]} (36. Bh5 $11 {and White is okay.}) 36... Rxd6 $1 $19 {[%emt 0:01:38]} 37. Re8+ {[%emt 0:01:53]} (37. Bxd6 $142 Qd1+ 38. Re1 Qxd6 39. Rd1) 37... Kh7 $19 {[%emt 0:00:09]} 38. Bxd6 {[%emt 0:01:46]} Bd4 $1 {[%emt 0:00:42]} 39. Qxd4 {[%emt 0:00:31]} Qxf3 {[%emt 0:00:03]} 40. Qf2 {[%emt 0:00:12]} Qd1+ {[%emt 0:00:03]} 41. Re1 {[%emt 0:02:32]} Qxd6 {[%emt 0:00:00]} 42. Qe3 {[%emt 0:00:25]} Be6 {[%emt 0:05:36]} 43. Re2 {[%emt 0:00:56]} Ne7 {[%emt 0:05:23]} 44. Qe5 {[%emt 0:00:30]} Qb6+ {[%emt 0:04:36]} 45. Qe3 {[%emt 0:03:05]} Qxe3+ {[%emt 0:01:04]} (45... Qa6 $142 46. Re1 Nf5) 46. Rxe3 $19 {[%emt 0:00:07]} b3 {[%emt 0:02:24]} 47. Kf2 {[%emt 0:03:13]} g6 {[%emt 0:01:53]} 48. g4 {[%emt 0:00:41]} Kg7 {[%emt 0:00:36]} 49. h3 {[%emt 0:02:27] [#]} Kf6 $1 {[%emt 0:00:42]} 50. Re4 {[%emt 0:01:59]} h5 {[%emt 0:03:26]} 51. Kg3 $2 {[%emt 0:00:53]} (51. Rb4 $17) 51... Nd5 $19 {[%emt 0:01:23]} 52. Kh4 $2 {[%emt 0:00:45]} (52. Re1) 52... hxg4 $19 {[%emt 0:01:12]} 53. hxg4 {[%emt 0:00:05]} Kg7 {[%emt 0:00:05]} 54. g5 {[%emt 0:10:21]} (54. Rd4 $142 Ne3 55. Kg3) 54... Bf5 $19 {[%emt 0:01:44]} 55. Rc4 {[%emt 0:00:43]} Bc2 {[%emt 0:00:21]} 56. Kg3 {[%emt 0:03:42]} Ne3 {[%emt 0:00:18]} 0-1

[Event "Prague Festival Masters 2024"]
[Site "Prague"]
[Date "2024.03.05"]
[Round "7.1"]
[White "Praggnanandhaa R"]
[Black "Gukesh D"]
[Result "1/2-1/2"]
[ECO "C54"]
[WhiteElo "2743"]
[BlackElo "2725"]
[Annotator "TA"]
[PlyCount "182"]
[EventDate "2024.02.22"]
[EventType "tourn"]
[EventCountry "CZE"]
[SourceTitle "playchess.com"]
[Source "ChessBase"]
[SourceQuality "1"]
[TimeControl "40/5400+30:1800+30"]

{[%evp 11,182,17,25,14,17,18,25,19,11,0,11,0,8,6,14,5,33,27,20,14,23,29,19,-11,60,33,66,20,37,31,40,31,91,87,91,96,95,88,88,93,91,90,108,100,102,102,102,102,114,108,97,99,94,113,110,104,139,127,147,137,267,260,246,103,210,141,155,162,162,148,154,148,142,141,108,95,93,40,29,28,30,40,35,37,27,3,132,132,132,132,132,132,132,132,132,132,132,132,132,132,132,132,132,132,132,132,132,132,132,132,132,132,132,132,132,132,132,132,132,132,132,132,132,132,132,132,132,132,132,67,132,0,0,0,132,67,132,0,0,0,0,0,132,0,132,0,0,0,0,0,0,0,0,0,0,0,0,0,0,0,0,0,0,0,0,0,0,0,0,0,0,0,0]} 1. e4 {[%emt 0:00:39]} e5 {[%emt 0:00:08]} 2. Nf3 {[%emt 0:00:07]} Nc6 {[%emt 0:00:08]} 3. Bc4 {[%emt 0:00:06]} Bc5 {[%emt 0:00:47]} 4. d3 {[%emt 0:00:09]} Nf6 {[%emt 0:00:26]} 5. O-O {[%emt 0:00:10]} d6 {[%emt 0:00:17]} 6. c3 {[%emt 0:00:07]} a6 {[%emt 0:00:40]} 7. Re1 {[%emt 0:00:14]} Ba7 {[%emt 0:00:24]} 8. Nbd2 {[%emt 0:00:16][%cal Bb1d2,Bd2f1,Bf1g3,Bg3f5][%mdl 32]} O-O {[%emt 0:05:49]} 9. Nf1 {[%emt 0:00:29] White has an edge.} Na5 {[%emt 0:03:21]} 10. Bb3 {[%emt 0:00:40]} Nxb3 {[%emt 0:00:10]} 11. axb3 {[%emt 0:00:05]} h6 {[%emt 0:04:59]} 12. Ng3 {[%emt 0:02:26]} Re8 {[%emt 0:00:22]} 13. h3 {[%emt 0:00:23]} b5 {[%emt 0:10:14][%cal Oa6a5]} 14. b4 {[%emt 0:22:06]} Bb7 {[%emt 0:06:10]} 15. Nh2 {[%emt 0:07:29]} d5 {[%emt 0:01:38]} 16. Qf3 {[%emt 0:00:28]} Re6 {[%emt 0:04:32]} 17. Nf5 {[%emt 0:06:18]} Kh7 {[%emt 0:16:58]} ({Black should try} 17... dxe4 $11 18. dxe4 h5) 18. Qg3 {[%emt 0:06:57]} Ne8 {[%emt 0:05:01]} 19. Ng4 {[%emt 0:06:58] White is much more active.} (19. exd5 $14 Qxd5 20. Ng4) 19... dxe4 $11 {[%emt 0:01:59]} 20. dxe4 {[%emt 0:00:08]} (20. Nxe5 $2 Qf6 21. Nd7 Qxf5 $17) 20... Nd6 {[%emt 0:09:44]} 21. Nxe5 {[%emt 0:06:08][%csl Gf5][%cal Rg3g7]} Nxf5 {[%emt 0:00:09]} ({Better is} 21... Qg8 $14 22. Be3 Nxe4) 22. exf5 $16 {[%emt 0:00:05]} Rf6 {[%emt 0:00:06]} 23. Be3 {[%emt 0:08:54]} Bxe3 {[%emt 0:00:30]} 24. Qxe3 {[%emt 0:00:48]} Rxf5 {[%emt 0:00:11]} 25. Rad1 {[%emt 0:01:02]} Qf6 {[%emt 0:01:49]} 26. f3 {[%emt 0:01:55]} h5 {[%emt 0:03:40]} 27. Kh2 {[%emt 0:07:03]} Bc6 {[%emt 0:08:23]} 28. Nxc6 {[%emt 0:08:28]} Qxc6 {[%emt 0:00:05]} 29. Qe7 {[%emt 0:00:07]} a5 {[%emt 0:05:46]} 30. bxa5 {[%emt 0:00:55]} Rxa5 {[%emt 0:00:05]} 31. Re5 {[%emt 0:00:41]} b4 {[%emt 0:05:03]} 32. Rxa5 {[%emt 0:01:26]} Rxa5 {[%emt 0:00:01]} 33. Qxb4 {[%emt 0:00:39][%mdl 4096] Endgame. KQR-KQR} (33. Qxf7 bxc3 34. bxc3 Qxc3 $11) 33... Re5 {[%emt 0:00:51]} 34. Qf4 $36 {[%emt 0:03:53][%csl LRe5,LRf7][%mdl 2048] White is in control.} Qe6 {[%emt 0:01:53]} 35. Rd7 $1 {[%emt 0:02:19]} Rf5 {[%emt 0:01:15]} (35... Qxd7 $16 36. Qxe5 Kg8) 36. Qxc7 $18 {[%emt 0:03:14]} Qe2 {[%emt 0:00:01] And now ...Rg5 would win.} 37. Re7 {[%emt 0:02:05]} (37. Rxf7 $2 Rg5 $19) (37. f4 $18 Qxb2 38. Rxf7 Rxf7 39. Qxf7 Qxc3 40. Qxh5+ Kg8 41. Qd5+ Kf8 42. Qf5+ Kg8 43. Qe4) 37... Qd2 {[%emt 0:01:27]} (37... Qxb2 $16 38. h4 (38. Rxf7 $2 Rg5 $19) 38... Qf2) 38. h4 {[%emt 0:01:47]} (38. Rxf7 $2 Rg5 $19) 38... Rf4 {[%emt 0:02:46][%cal Bf5f4,Bf4h4,Bh4h1][%mdl 32]} 39. Qe5 {[%emt 0:01:43]} (39. Rxf7 $2 Rxh4+ 40. Kg3 Qe1#) 39... Rxh4+ {[%emt 0:01:36]} 40. Kg3 {[%emt 0:00:09]} Rh1 {[%emt 0:00:09]} 41. Qe4+ {[%emt 0:03:27]} (41. Rxf7 h4+ (41... Qxb2 42. Qxg7#) 42. Kg4 Qxg2+ (42... Qxb2 43. Qxg7#) 43. Kf4 Qg3+ (43... Qxb2 44. Qxg7#) 44. Kf5 Qg6+ (44... Qxf3+ 45. Ke6 $17) 45. Kf4 Qxf7+ 46. Qf5+ Qxf5+ 47. Kxf5 Rg1 48. Ke5 h3 49. Kd6 h2 50. Kc6 h1=Q (50... h1=B 51. Kd6 Bxf3 52. Ke5 g5 53. Kf5 g4 54. Ke5 g3 55. Kf4 Bb7 56. Ke3 g2 57. Ke2 Rb1 58. Kd3 g1=Q 59. b3 Rxb3 60. Kd2 Rb2+ 61. Kd3 Qd1+ 62. Ke3 Qd2#) 51. Kd6 Qh5 (51... Qxf3 52. Kc5 Rg5+ 53. Kd4 Qd5+ 54. Ke3 Rg3+ 55. Kf2 Qf3+ 56. Ke1 Rg2 57. c4 Qe2#) 52. b3 Rg6+ (52... Qxf3 53. Kc5 Qxc3+ 54. Kd5 Rd1+ 55. Ke4 Rd4+ 56. Ke5 Kg6 57. Ke6 Qe3#) 53. Kd7 Qd5+ (53... Qxf3 54. Kd8 Re6 55. Kc8 Re7 56. Kd8 Qf8#) 54. Kc8 Rc6+ (54... Qxf3 55. Kc7 Re6 56. Kc8 Re7 57. Kd8 Qf8#) 55. Kb8 Qb5+ 56. Ka8 Ra6#) 41... Kh6 {[%emt 0:00:37] Strongly threatening ...h4+.} 42. Qf4+ {[%emt 0:03:28]} (42. Rxf7 $2 {perishes.} h4+ $19 (42... Qxb2 $2 43. Rb7 $18) (42... Qxb2 $2 43. Rb7 $18)) 42... Qxf4+ {[%emt 0:00:07]} 43. Kxf4 $16 {[%emt 0:00:03] KR-KR} g5+ {[%emt 0:01:43]} 44. Kg3 {[%emt 0:04:52]} (44. Kf5 $16 Rh2 45. Re2 (45. Rxf7 Rxg2 46. Rf6+ Kh7 $11)) 44... f5 $14 {[%emt 0:04:09]} 45. Re6+ {[%emt 0:05:30]} Kg7 {[%emt 0:00:05]} 46. Kf2 {[%emt 0:00:08]} Rb1 {[%emt 0:00:52]} 47. Re2 {[%emt 0:00:58]} f4 {[%emt 0:01:47]} 48. Rd2 {[%emt 0:02:24] With the idea Ke2.} g4 {[%emt 0:05:29]} (48... Kf6 $11) 49. g3 $1 $16 {[%emt 0:06:11]} h4 {[%emt 0:02:07]} 50. gxh4 {[%emt 0:00:32]} ({Of course not} 50. fxg4 $6 fxg3+ 51. Kg2 Kg6 $11) 50... g3+ {[%emt 0:00:21][%cal Bg4g3,Bg3g2][%mdl 32]} 51. Kg2 {[%emt 0:00:07]} Rc1 {[%emt 0:00:11] Dodges Rc2} 52. Kh3 {[%emt 0:05:52] Kg4 is the strong threat.} Rh1+ {[%emt 0:01:59]} 53. Kg4 {[%emt 0:00:05]} Rh2 {[%emt 0:00:09]} 54. Rd1 {[%emt 0:00:22]} Rxb2 {[%emt 0:00:11]} 55. Kxf4 {[%emt 0:00:08]} g2 {[%emt 0:00:16]} 56. Rg1 {[%emt 0:02:18]} Rc2 {[%emt 0:00:06]} 57. Kg4 {[%emt 0:00:06]} Kh6 {[%emt 0:02:44]} 58. f4 {[%emt 0:00:22]} Kg6 {[%emt 0:00:31] [#]} 59. c4 $1 {[%emt 0:00:15]} Rxc4 {[%emt 0:00:16]} 60. Rxg2 {[%emt 0:00:05]} Rc1 {[%emt 0:00:12]} 61. h5+ {[%emt 0:01:44]} Kh6 {[%emt 0:00:58]} 62. Re2 {[%emt 0:00:14]} Rg1+ {[%emt 0:00:33]} 63. Kf5 {[%emt 0:00:02]} Ra1 {[%emt 0:01:15]} 64. Re8 {[%emt 0:00:07]} Ra2 {[%emt 0:02:21]} 65. Kg4 {[%emt 0:01:01]} Rg2+ {[%emt 0:00:16] [#]} 66. Kf3 $1 {[%emt 0:01:44]} Ra2 {[%emt 0:00:07]} 67. Re5 {[%emt 0:00:07]} Ra1 {[%emt 0:02:40]} 68. Rb5 {[%emt 0:00:58]} Ra2 {[%emt 0:01:31]} 69. Rc5 {[%emt 0:00:07]} Ra1 {[%emt 0:00:06] [#]} 70. Re5 {[%emt 0:00:02]} (70. Rg5 $1 $16) 70... Ra2 {[%emt 0:00:34]} (70... Rg1 $14) 71. Kg4 {[%emt 0:00:06]} (71. Rg5 $16) 71... Rg2+ $11 {[%emt 0:00:06]} 72. Kf5 {[%emt 0:00:02]} Rf2 {[%emt 0:02:56]} (72... Kxh5 $11 {remains equal.} 73. Kf6+ Kh6) 73. Ke4 {[%emt 0:01:19]} (73. Re3 $16) 73... Ra2 {[%emt 0:01:21]} (73... Re2+ $14 74. Kf5 Rc2) 74. Kf3 {[%emt 0:00:47]} (74. Rg5 $16) 74... Ra1 {[%emt 0:00:39]} 75. Kg4 {[%emt 0:00:14] aiming for Re6+.} Rg1+ {[%emt 0:00:05]} 76. Kf5 {[%emt 0:00:01]} Rf1 {[%emt 0:00:25]} (76... Kxh5 $11 {keeps the balance.} 77. Kf6+ Kh6) 77. Re4 {[%emt 0:00:24]} (77. Re8 $16) 77... Ra1 {[%emt 0:01:08]} (77... Kxh5 $11 78. Kf6 Rd1) 78. Kf6 {[%emt 0:00:24]} (78. Re3 $16) 78... Kxh5 {[%emt 0:02:08] The position is equal.} 79. f5 {[%emt 0:00:05]} Ra6+ {[%emt 0:01:07]} 80. Re6 {[%emt 0:00:05]} Ra7 {[%emt 0:00:32]} 81. Rd6 {[%emt 0:00:25]} (81. Re1 $5 Ra6+ $8 82. Ke5 $11) 81... Kh6 {[%emt 0:00:44]} 82. Rb6 {[%emt 0:00:05]} Kh5 {[%emt 0:00:33]} 83. Re6 {[%emt 0:00:05]} (83. Rb1 $5 Ra6+ $8 84. Ke5 $11) 83... Kh6 {[%emt 0:00:26]} 84. Re5 {[%emt 0:00:03]} Kh5 {[%emt 0:01:01]} 85. Re7 {[%emt 0:00:15]} (85. Re1 $5 Ra6+ $8 86. Re6 $11) 85... Ra6+ {[%emt 0:00:22]} 86. Kg7 {[%emt 0:00:05] Threatening mate with f6.} Kg5 {[%emt 0:00:05]} 87. Rf7 {[%emt 0:00:04]} Rb6 {[%emt 0:00:11]} 88. f6 {[%emt 0:00:03]} Ra6 {[%emt 0:00:08]} 89. Re7 {[%emt 0:00:08] Re1 would kill now.} Rxf6 {[%emt 0:00:04]} 90. Re5+ {[%emt 0:00:01]} Rf5 {[%emt 0:00:02]} 91. Rxf5+ {[%emt 0:00:01]} Kxf5 {[%emt 0:00:00] Black escapes into a draw.   Weighted Error Value: White=0.09 (flawless) /Black=0.16 (very precise) .  Mistake:       	White=9     	Black=10     Inaccurate:     	White=3     	Black=3      OK:         	White=30    	Black=28     Best:        	White=8     	Black=23     Strong:       	White=2     	---        Brilliant:      	White=1     	---} 1/2-1/2

[Event "Prague Festival Masters 2024"]
[Site "Prague"]
[Date "2024.03.05"]
[Round "7.2"]
[White "Bartel, Mateusz"]
[Black "Navara, David"]
[Result "1/2-1/2"]
[ECO "B94"]
[WhiteElo "2657"]
[BlackElo "2679"]
[Annotator "TA"]
[PlyCount "114"]
[EventDate "2024.02.22"]
[EventType "tourn"]
[EventCountry "CZE"]
[SourceTitle "playchess.com"]
[Source "ChessBase"]
[SourceQuality "1"]
[TimeControl "40/5400+30:1800+30"]

{[%evp 12,114,4,9,4,15,16,0,0,-12,20,15,37,24,35,35,53,27,45,0,0,0,0,0,0,0,1,0,0,0,1,0,14,0,0,0,0,0,0,6,6,0,0,-16,-4,-8,-8,-8,-7,-12,-14,-31,-30,-45,-34,-35,-8,-14,-17,-18,-12,-22,-4,-17,0,0,0,0,0,0,39,31,30,31,33,24,24,27,28,16,16,27,22,0,0,0,0,0,0,0,0,0,0,0,0,0,0,0,0,0,0,0,0,0,0]} 1. e4 {[%emt 0:00:03]} c5 {[%emt 0:00:04]} 2. Nf3 {[%emt 0:00:08]} d6 {[%emt 0:00:03]} 3. d4 {[%emt 0:00:09]} cxd4 {[%emt 0:00:05]} 4. Nxd4 {[%emt 0:00:06]} Nf6 {[%emt 0:00:06]} 5. Nc3 {[%emt 0:00:06]} a6 {[%emt 0:00:04]} 6. Bg5 {[%emt 0:00:05]} Nbd7 {[%emt 0:00:05]} 7. Bc4 {[%emt 0:00:08]} Qb6 {[%emt 0:00:55]} 8. Bb3 {[%emt 0:01:05]} e6 {[%emt 0:00:13]} 9. a4 {[%emt 0:00:07]} Qa5 {[%emt 0:08:14][%csl LRe4,LRg5]} 10. Qd2 {[%emt 0:00:08]} Be7 {[%emt 0:03:23]} 11. f3 {[%emt 0:06:28]} Nc5 {[%emt 0:04:16]} 12. Ba2 {[%emt 0:00:10]} Bd7 {[%emt 0:05:50]} 13. O-O {[%emt 0:06:11]} Rc8 {[%emt 0:09:03]} 14. Rfe1 {[%emt 0:19:37][%cal Od4f5]} Nxa4 {[%emt 0:30:34]} 15. Nxa4 {[%emt 0:13:18]} Qxd2 {[%emt 0:00:26]} 16. Bxd2 {[%emt 0:00:06]} Bxa4 {[%emt 0:00:08]} 17. Bxe6 {[%emt 0:00:07]} fxe6 {[%emt 0:00:16]} 18. Rxa4 {[%emt 0:00:05]} Kf7 {[%emt 0:00:41]} 19. c3 {[%emt 0:05:29]} Nd7 {[%emt 0:02:28][%cal Bf6d7,Bd7e5,Be5c4][%mdl 32]} 20. Raa1 {[%emt 0:00:51]} Bf6 {[%emt 0:02:29]} 21. Be3 {[%emt 0:00:50]} Ne5 {[%emt 0:00:58]} 22. Re2 {[%emt 0:01:20]} Rhd8 {[%emt 0:07:11]} 23. Nb3 {[%emt 0:09:30]} Nc4 {[%emt 0:00:27]} 24. Bd4 {[%emt 0:00:06]} g6 {[%emt 0:06:20]} 25. Bxf6 {[%emt 0:15:33]} Kxf6 {[%emt 0:00:04]} 26. f4 {[%emt 0:00:05]} e5 {[%emt 0:03:17]} 27. Rf1 {[%emt 0:00:06]} exf4 {[%emt 0:01:04]} 28. Rxf4+ {[%emt 0:00:06]} Ke7 {[%emt 0:01:16]} 29. Nd4 {[%emt 0:00:04]} Rf8 {[%emt 0:01:14]} 30. Rxf8 {[%emt 0:01:40]} Rxf8 $11 {[%emt 0:00:44][%mdl 4096] Endgame. KRN-KRN} 31. b3 {[%emt 0:00:48]} Ne5 {[%emt 0:00:24]} 32. c4 {[%emt 0:05:00]} a5 {[%emt 0:02:14]} 33. Nb5 {[%emt 0:00:42]} Nd3 {[%emt 0:02:10]} 34. Re3 {[%emt 0:02:03]} Nb4 {[%emt 0:00:30]} 35. Rh3 {[%emt 0:01:44]} Rf7 {[%emt 0:02:13]} 36. Rg3 {[%emt 0:04:30]} Rf4 {[%emt 0:03:54]} 37. Nc3 {[%emt 0:00:28]} Ke6 {[%emt 0:00:24]} 38. Rg5 {[%emt 0:00:38]} Nc6 {[%emt 0:02:34]} 39. Rd5 {[%emt 0:02:02]} Rf7 {[%emt 0:03:06]} 40. Nb5 {[%emt 0:00:12]} Nb4 {[%emt 0:00:30]} 41. Nd4+ {[%emt 0:32:21]} Kd7 {[%emt 0:17:15]} 42. Rxa5 {[%emt 0:00:00] aiming for Rb5.} Nc6 {[%emt 0:00:03]} 43. Rd5 {[%emt 0:00:00]} Nxd4 {[%emt 0:00:14]} 44. Rxd4 {[%emt 0:00:00] Threatens to win with c5. KR-KR} Kc6 {[%emt 0:00:10]} 45. b4 {[%emt 0:00:00]} Rf4 {[%emt 0:00:07]} 46. g3 {[%emt 0:00:00]} Rf3 {[%emt 0:00:31]} 47. Kg2 {[%emt 0:00:00] The position is equal.} Rb3 {[%emt 0:00:35]} 48. b5+ {[%emt 0:00:00]} Kc5 {[%emt 0:00:37]} 49. Rd5+ {[%emt 0:00:00]} Kxc4 {[%emt 0:00:05] ...Rd3 is the strong threat.} 50. Rxd6 {[%emt 0:00:00]} Rxb5 {[%emt 0:03:53]} 51. Kf3 {[%emt 0:00:00]} Rc5 {[%emt 0:00:30]} 52. Kf4 {[%emt 0:00:00] And now e5 would win.} g5+ {[%emt 0:01:22]} 53. Ke3 {[%emt 0:00:00]} b5 {[%emt 0:01:03]} 54. Rd4+ {[%emt 0:00:00]} Kc3 {[%emt 0:00:24]} 55. Rd5 {[%emt 0:00:00]} Kc4 {[%emt 0:00:08]} 56. Rd4+ {[%emt 0:00:00]} Kc3 {[%emt 0:04:19]} 57. Rd5 {[%emt 0:00:00]} Kc4 {[%emt 0:00:05] Weighted Error Value: White=0.05 (flawless) /Black=0.06 (flawless) .  Inaccurate:     	White=2     	Black=3      OK:         	White=23    	Black=29     Best:        	---       	Black=3} 1/2-1/2